[Event "Fagernes GM-B 2019"]
[Site "Fagernes"]
[Date "2019.04.16"]
[Round "3.24"]
[White "Betaneli, Alexander"]
[Black "Von Bahr, Oskar"]
[Result "1/2-1/2"]
[ECO "A36"]
[WhiteElo "2235"]
[BlackElo "2404"]
[Annotator "NA"]
[PlyCount "129"]
[EventDate "2019.04.14"]
[EventType "tourn"]
[EventCountry "NOR"]
[SourceTitle "playchess.com"]
[Source "ChessBase"]
[SourceQuality "1"]
[TimeControl "40/5400+30:1800+30"]

1. c4 {[%emt 0:00:00]} c5 {[%emt 0:00:49]} 2. g3 {[%emt 0:00:00]} g6 {[%emt 0:00:33]} 3. Bg2 {[%emt 0:00:00]} Bg7 {[%emt 0:00:03]} 4. Nc3 {[%emt 0:00:00]} Nc6 {[%emt 0:00:08]} 5. e4 {[%emt 0:01:01]} d6 {[%emt 0:03:48]} 6. Nge2 {[%emt 0:01:12]} Nf6 {[%emt 0:00:40]} 7. d3 {[%emt 0:01:27]} a6 {[%emt 0:03:08]} 8. O-O {[%emt 0:06:51]} Rb8 {[%emt 0:00:33]} 9. a4 {[%emt 0:00:58]} Bg4 {[%emt 0:00:22]} 10. f3 {[%emt 0:01:45]} Bd7 {[%emt 0:00:08]} 11. Rb1 {[%emt 0:03:20]} O-O {[%emt 0:00:42]} 12. Be3 {[%emt 0:04:11]} Ne8 {[%emt 0:01:22]} 13. d4 {[%emt 0:09:45]} cxd4 {[%emt 0:02:43]} 14. Nxd4 {[%emt 0:00:03]} Nc7 {[%emt 0:00:39]} 15. Nb3 {[%emt 0:08:35]} Ne5 {[%emt 0:16:39]} 16. c5 {[%emt 0:19:41]} dxc5 {[%emt 0:08:38]} 17. Nxc5 {[%emt 0:05:13]} Bc6 {[%emt 0:02:43]} 18. Qe2 {[%emt 0:01:54]} a5 {[%emt 0:11:26]} 19. Rfd1 {[%emt 0:02:08]} Qe8 {[%emt 0:00:58]} 20. f4 {[%emt 0:11:32]} b6 {[%emt 0:08:38]} 21. Nb3 {[%emt 0:04:52]} Bxa4 {[%emt 0:08:11]} 22. Nxa4 {[%emt 0:00:12]} Qxa4 {[%emt 0:00:02]} 23. Nd4 {[%emt 0:00:31]} Nc6 {[%emt 0:03:36]} 24. Nxc6 {[%emt 0:04:30]} Qxc6 {[%emt 0:00:03]} 25. Rbc1 {[%emt 0:01:34]} Qb5 {[%emt 0:01:10]} 26. Qxb5 {[%emt 0:00:07]} Nxb5 {[%emt 0:00:02]} 27. e5 {[%emt 0:00:23]} f6 {[%emt 0:06:55]} 28. Bf1 {[%emt 0:05:38]} Na7 {[%emt 0:00:25]} 29. Rd7 {[%emt 0:02:10]} Nc8 {[%emt 0:00:30]} 30. Bd4 {[%emt 0:02:48]} fxe5 {[%emt 0:02:28]} 31. Bxe5 {[%emt 0:00:06]} Bxe5 {[%emt 0:00:39]} 32. fxe5 {[%emt 0:00:03]} b5 {[%emt 0:01:01]} 33. Rc5 {[%emt 0:01:52]} Kf7 {[%emt 0:03:56]} 34. Bh3 {[%emt 0:00:53]} Nb6 {[%emt 0:04:03]} 35. Ra7 {[%emt 0:00:19]} Ra8 {[%emt 0:03:38]} 36. Rxa8 {[%emt 0:00:58]} Rxa8 {[%emt 0:00:08]} 37. Rxb5 {[%emt 0:00:03]} Nc4 {[%emt 0:01:23]} 38. Bg2 {[%emt 0:00:59]} Rc8 {[%emt 0:00:44]} 39. Bd5+ {[%emt 0:00:33]} Kf8 {[%emt 0:01:49]} 40. Be6 {[%emt 0:00:52]} Rc6 {[%emt 0:01:21]} 41. Bd5 {[%emt 0:05:34]} Rc7 {[%emt 0:02:51]} 42. e6 {[%emt 0:05:37]} Kg7 {[%emt 0:31:25]} 43. Kf2 {[%emt 0:21:20]} Nd6 {[%emt 0:00:00]} 44. Rxa5 {[%emt 0:00:00]} Rc2+ {[%emt 0:00:00]} 45. Kf3 {[%emt 0:01:00]} Rxb2 {[%emt 0:00:00]} 46. h4 {[%emt 0:00:00]} Rb5 {[%emt 0:00:00]} 47. Rxb5 {[%emt 0:00:00]} Nxb5 {[%emt 0:00:00]} 48. g4 {[%emt 0:00:00]} Nc7 {[%emt 0:00:00]} 49. Bc4 {[%emt 0:00:00]} Kf6 {[%emt 0:00:00]} 50. g5+ {[%emt 0:00:00]} Ke5 {[%emt 0:00:00]} 51. Kg4 {[%emt 0:00:00]} Nxe6 {[%emt 0:00:00]} 52. h5 {[%emt 0:00:00]} Nf4 {[%emt 0:00:00]} 53. hxg6 {[%emt 0:00:00]} hxg6 {[%emt 0:00:00]} 54. Bb3 {[%emt 0:01:42]} Nd5 {[%emt 0:00:00]} 55. Kf3 {[%emt 0:00:10]} Nb4 {[%emt 0:00:00]} 56. Kg4 {[%emt 0:00:36]} e6 {[%emt 0:00:00]} 57. Ba4 {[%emt 0:00:16]} Nd5 {[%emt 0:00:09]} 58. Be8 {[%emt 0:00:19]} Nf4 {[%emt 0:01:02]} 59. Bc6 {[%emt 0:01:06]} Nd5 {[%emt 0:00:32]} 60. Be8 {[%emt 0:00:04]} Ne3+ {[%emt 0:02:02]} 61. Kf3 {[%emt 0:00:42]} Nf5 {[%emt 0:00:06]} 62. Kg4 {[%emt 0:01:07]} Ne7 {[%emt 0:01:17]} 63. Bf7 {[%emt 0:01:12]} Kd5 {[%emt 0:02:55]} 64. Kg3 {[%emt 0:01:01]} Ke5 {[%emt 0:01:04]} 65. Kg4 {[%emt 0:00:03]} 1/2-1/2

[Event "Fagernes GM-B 2019"]
[Site "Fagernes"]
[Date "2019.04.18"]
[Round "4"]
[White "Levin, Felix"]
[Black "Lund, Gunnar"]
[Result "1/2-1/2"]
[ECO "A55"]
[WhiteElo "2476"]
[BlackElo "2271"]
[Annotator "ChessBase"]
[PlyCount "60"]
[EventDate "2019.04.14"]
[EventType "tourn"]
[EventCountry "NOR"]
[SourceTitle "playchess.com"]
[Source "ChessBase"]
[SourceQuality "1"]
[TimeControl "40/5400+30:1800+30"]

1. d4 {[%emt 0:00:00]} d6 {[%emt 0:06:36]} 2. Nf3 {[%emt 0:00:00]} Nf6 {[%emt 0:00:18]} 3. c4 {[%emt 0:00:39]} Nbd7 {[%emt 0:00:14]} 4. Nc3 {[%emt 0:00:21]} e5 {[%emt 0:00:09]} 5. e4 {[%emt 0:01:00]} Be7 {[%emt 0:00:09]} 6. Be2 {[%emt 0:00:49]} O-O {[%emt 0:00:22]} 7. O-O {[%emt 0:00:45]} c6 {[%emt 0:00:43]} 8. Be3 {[%emt 0:02:35]} a6 {[%emt 0:02:22]} 9. d5 {[%emt 0:01:22]} cxd5 {[%emt 0:02:20]} 10. cxd5 {[%emt 0:00:15]} Ng4 {[%emt 0:00:55]} 11. Bd2 {[%emt 0:04:18]} b5 {[%emt 0:02:14]} 12. b4 {[%emt 0:10:27]} Nb6 {[%emt 0:02:12]} 13. Ne1 {[%emt 0:00:54]} f5 {[%emt 0:13:31]} 14. exf5 {[%emt 0:04:45]} Nf6 {[%emt 0:04:35]} 15. Nc2 {[%emt 0:01:03]} Bxf5 {[%emt 0:05:24]} 16. Ne3 {[%emt 0:00:40]} Bd7 {[%emt 0:00:32]} 17. Rc1 {[%emt 0:14:45]} Kh8 {[%emt 0:03:20]} 18. Bd3 {[%emt 0:12:51]} Ra7 {[%emt 0:06:17]} 19. Bc2 {[%emt 0:01:33]} Qa8 {[%emt 0:01:50]} 20. Bb3 {[%emt 0:01:09]} Rc7 {[%emt 0:02:16]} 21. f4 {[%emt 0:07:21]} Nc4 {[%emt 0:09:45]} 22. Bxc4 {[%emt 0:01:38]} bxc4 {[%emt 0:00:08]} 23. Kh1 {[%emt 0:03:09]} Bc8 {[%emt 0:03:22]} 24. Qe2 {[%emt 0:02:06]} Bb7 {[%emt 0:02:52]} 25. Nxc4 {[%emt 0:01:32]} Nxd5 {[%emt 0:03:39]} 26. Nxd5 {[%emt 0:02:06]} Bxd5 {[%emt 0:00:32]} 27. Nb6 {[%emt 0:01:13]} Rxc1 {[%emt 0:01:00]} 28. Nxa8 {[%emt 0:04:57]} Bc4 {[%emt 0:01:19]} 29. Rxc1 {[%emt 0:03:36]} Bxe2 {[%emt 0:00:08]} 30. Nc7 {[%emt 0:01:06]} Rc8 {[%emt 0:03:09]} 1/2-1/2

[Event "Fagernes GM-B 2019"]
[Site "Fagernes"]
[Date "2019.04.18"]
[Round "4"]
[White "Holm, Kristian Stuvik"]
[Black "Greenfeld, Alon"]
[Result "1/2-1/2"]
[ECO "D20"]
[WhiteElo "2467"]
[BlackElo "2514"]
[Annotator "ChessBase"]
[PlyCount "88"]
[EventDate "2019.04.14"]
[EventType "tourn"]
[EventCountry "NOR"]
[SourceTitle "playchess.com"]
[Source "ChessBase"]
[SourceQuality "1"]
[TimeControl "40/5400+30:1800+30"]

1. d4 {[%emt 0:00:00]} d5 {[%emt 0:10:08]} 2. c4 {[%emt 0:00:00]} dxc4 {[%emt 0:00:32]} 3. e3 {[%emt 0:00:00]} e5 {[%emt 0:00:32]} 4. Bxc4 {[%emt 0:00:00]} exd4 {[%emt 0:01:01]} 5. exd4 {[%emt 0:00:06]} Bd6 {[%emt 0:00:29]} 6. Nf3 {[%emt 0:00:11]} Nf6 {[%emt 0:00:27]} 7. Qe2+ {[%emt 0:00:08]} Qe7 {[%emt 0:01:07]} 8. Qxe7+ {[%emt 0:00:35]} Bxe7 {[%emt 0:00:24]} 9. Nc3 {[%emt 0:00:12]} O-O {[%emt 0:20:50]} 10. O-O {[%emt 0:00:30]} h6 {[%emt 0:20:48]} 11. Bf4 {[%emt 0:12:22]} Bd6 {[%emt 0:16:05]} 12. Bxd6 {[%emt 0:01:52]} cxd6 {[%emt 0:00:04]} 13. Nb5 {[%emt 0:00:58]} Ne8 {[%emt 0:00:32]} 14. Rfe1 {[%emt 0:02:01]} Bd7 {[%emt 0:01:59]} 15. Rac1 {[%emt 0:25:35]} Nc6 {[%emt 0:03:33]} 16. d5 {[%emt 0:15:12]} Ne5 {[%emt 0:05:38]} 17. Nxe5 {[%emt 0:02:48]} dxe5 {[%emt 0:00:13]} 18. Rxe5 {[%emt 0:00:21]} Rc8 {[%emt 0:01:23]} 19. Ree1 {[%emt 0:16:10]} Rxc4 {[%emt 0:00:38]} 20. Rxc4 {[%emt 0:00:03]} Bxb5 {[%emt 0:00:06]} 21. Rc8 {[%emt 0:00:09]} Nd6 {[%emt 0:04:49]} 22. Rxf8+ {[%emt 0:00:36]} Kxf8 {[%emt 0:00:01]} 23. b3 {[%emt 0:03:38]} Ne8 {[%emt 0:01:55]} 24. f3 {[%emt 0:05:28]} Nc7 {[%emt 0:01:53]} 25. a4 {[%emt 0:02:31]} Bd7 {[%emt 0:01:30]} 26. Rd1 {[%emt 0:03:13]} Na6 {[%emt 0:00:25]} 27. Re1 {[%emt 0:02:00]} Nb4 {[%emt 0:00:58]} 28. d6 {[%emt 0:00:23]} Be6 {[%emt 0:01:04]} 29. Rc1 {[%emt 0:04:24]} Na6 {[%emt 0:03:07]} 30. b4 {[%emt 0:00:32]} b6 {[%emt 0:00:37]} 31. a5 {[%emt 0:01:18]} b5 {[%emt 0:00:48]} 32. Rc6 {[%emt 0:00:51]} Nxb4 {[%emt 0:00:13]} 33. Rc7 {[%emt 0:00:04]} a6 {[%emt 0:00:10]} 34. Ra7 {[%emt 0:00:14]} Ke8 {[%emt 0:00:08]} 35. Kf2 {[%emt 0:00:50]} Bd5 {[%emt 0:02:13]} 36. h4 {[%emt 0:01:42]} Kd8 {[%emt 0:00:27]} 37. g4 {[%emt 0:00:38]} Bc4 {[%emt 0:00:33]} 38. h5 {[%emt 0:00:29]} Be6 {[%emt 0:00:52]} 39. Kg3 {[%emt 0:00:22]} Nc6 {[%emt 0:00:17]} 40. Rxa6 {[%emt 0:00:24]} Kd7 {[%emt 0:00:01]} 41. Rb6 {[%emt 0:01:46]} Nxa5 {[%emt 0:06:32]} 42. Rxb5 {[%emt 0:00:12]} Nc4 {[%emt 0:00:05]} 43. Rb8 {[%emt 0:01:25]} Nxd6 {[%emt 0:01:00]} 44. Ra8 {[%emt 0:04:13]} Bd5 {[%emt 0:07:32]} 1/2-1/2

[Event "Fagernes GM-B 2019"]
[Site "Fagernes"]
[Date "2019.04.18"]
[Round "4"]
[White "Kazakovskiy, Valeriy"]
[Black "Betaneli, Alexander"]
[Result "1-0"]
[ECO "E06"]
[WhiteElo "2440"]
[BlackElo "2235"]
[Annotator "NA"]
[PlyCount "105"]
[EventDate "2019.04.14"]
[EventType "tourn"]
[EventCountry "NOR"]
[SourceTitle "playchess.com"]
[Source "ChessBase"]
[SourceQuality "1"]
[TimeControl "40/5400+30:1800+30"]

1. d4 {[%emt 0:00:00]} d5 {[%emt 0:00:00]} 2. c4 {[%emt 0:00:00]} e6 {[%emt 0:00:00]} 3. Nf3 {[%emt 0:00:04]} Nf6 {[%emt 1:31:30]} 4. g3 {[%emt 0:00:13]} Be7 {[%emt 0:00:00]} 5. Bg2 {[%emt 0:00:42]} O-O {[%emt 0:00:00]} 6. O-O {[%emt 0:00:41]} c6 {[%emt 0:00:00]} 7. Qc2 {[%emt 0:00:23]} b6 {[%emt 0:00:00]} 8. Nbd2 {[%emt 0:01:40]} Bb7 {[%emt 0:00:00]} 9. e4 {[%emt 0:00:45]} Na6 {[%emt 0:00:00]} 10. e5 {[%emt 0:03:42]} Nd7 {[%emt 0:00:00]} 11. a3 {[%emt 0:00:31]} c5 {[%emt 0:00:00]} 12. dxc5 {[%emt 0:00:57]} Naxc5 {[%emt 0:00:00]} 13. b4 {[%emt 0:02:41]} Ne4 {[%emt 0:00:00]} 14. cxd5 {[%emt 0:04:23]} exd5 {[%emt 0:00:00]} 15. Bb2 {[%emt 0:02:31]} a5 {[%emt 0:00:00]} 16. Qb3 {[%emt 0:04:12]} axb4 {[%emt 0:00:00]} 17. axb4 {[%emt 0:00:27]} Rxa1 {[%emt 0:00:00]} 18. Rxa1 {[%emt 0:01:10]} Qb8 {[%emt 0:00:00]} 19. Nf1 {[%emt 0:05:27]} Rd8 {[%emt 0:00:00]} 20. Ne3 {[%emt 0:03:14]} Nf8 {[%emt 0:00:00]} 21. Rd1 {[%emt 0:04:11]} Qa8 {[%emt 0:00:00]} 22. Nf5 {[%emt 0:02:17]} Ng6 {[%emt 0:00:00]} 23. N3d4 {[%emt 0:05:36]} Bf8 {[%emt 0:00:00]} 24. e6 {[%emt 0:01:05]} Nf6 {[%emt 0:00:00]} 25. Qf3 {[%emt 0:12:00]} Qa4 {[%emt 0:00:00]} 26. Ra1 {[%emt 0:03:26]} Qxb4 {[%emt 0:00:00]} 27. Nh6+ {[%emt 0:01:06]} gxh6 {[%emt 0:00:00]} 28. Qxf6 {[%emt 0:00:16]} fxe6 {[%emt 0:02:44]} 29. Nc6 {[%emt 0:02:20]} Qxb2 {[%emt 0:01:31]} 30. Qxb2 {[%emt 0:00:23]} Bxc6 {[%emt 0:00:06]} 31. Qxb6 {[%emt 0:00:40]} Rd6 {[%emt 0:01:20]} 32. Ra7 {[%emt 0:01:23]} Be8 {[%emt 0:02:37]} 33. Qb7 {[%emt 0:01:35]} Rd7 {[%emt 0:00:37]} 34. Qb8 {[%emt 0:00:41]} Rxa7 {[%emt 0:00:13]} 35. Qxa7 {[%emt 0:00:10]} Bf7 {[%emt 0:01:55]} 36. Qa8 {[%emt 0:03:15]} Kg7 {[%emt 0:00:39]} 37. Bh3 {[%emt 0:01:10]} Be7 {[%emt 0:02:55]} 38. Qb7 {[%emt 0:01:47]} Kf6 {[%emt 0:01:35]} 39. Qb2+ {[%emt 0:00:57]} e5 {[%emt 0:00:06]} 40. Qb6+ {[%emt 0:00:08]} Kg7 {[%emt 0:00:12]} 41. Be6 {[%emt 0:30:10]} d4 {[%emt 0:31:15]} 42. Bxf7 {[%emt 0:01:04]} Kxf7 {[%emt 0:00:02]} 43. h4 {[%emt 0:01:29]} Bf6 {[%emt 0:00:00]} 44. Qb3+ {[%emt 0:00:00]} Kg7 {[%emt 0:00:00]} 45. Qe6 {[%emt 0:00:00]} Ne7 {[%emt 0:00:00]} 46. Kg2 {[%emt 0:00:00]} Kg6 {[%emt 0:00:00]} 47. Kf3 {[%emt 0:00:00]} h5 {[%emt 0:00:00]} 48. Ke4 {[%emt 0:00:00]} Kg7 {[%emt 0:00:00]} 49. Qb3 {[%emt 0:00:00]} Kg6 {[%emt 0:00:00]} 50. Qf3 {[%emt 0:00:00]} h6 {[%emt 0:00:00]} 51. Kd3 {[%emt 0:00:00]} Ng8 {[%emt 0:00:00]} 52. Qe4+ {[%emt 0:00:00]} Kg7 {[%emt 0:00:00]} 53. Qf5 {[%emt 0:00:00]} 1-0

[Event "Fagernes GM-B 2019"]
[Site "Fagernes"]
[Date "2019.04.18"]
[Round "4"]
[White "Von Bahr, Oskar"]
[Black "Kaasen, Tor Fredrik"]
[Result "1/2-1/2"]
[ECO "A06"]
[WhiteElo "2404"]
[BlackElo "2385"]
[Annotator "NA"]
[PlyCount "48"]
[EventDate "2019.04.14"]
[EventType "tourn"]
[EventCountry "NOR"]
[SourceTitle "playchess.com"]
[Source "ChessBase"]
[SourceQuality "1"]
[TimeControl "40/5400+30:1800+30"]

1. Nf3 {[%emt 0:00:00]} Nf6 {[%emt 0:02:51]} 2. b3 {[%emt 0:00:00]} d5 {[%emt 0:03:09]} 3. Bb2 {[%emt 0:00:20]} Bg4 {[%emt 0:03:28]} 4. g3 {[%emt 0:05:51]} Bxf3 {[%emt 0:01:08]} 5. exf3 {[%emt 0:00:04]} e6 {[%emt 0:00:18]} 6. d4 {[%emt 0:01:22]} Be7 {[%emt 0:01:39]} 7. Bd3 {[%emt 0:00:44]} O-O {[%emt 0:01:23]} 8. O-O {[%emt 0:00:45]} Nbd7 {[%emt 0:06:34]} 9. Re1 {[%emt 0:00:48]} c5 {[%emt 0:02:22]} 10. Nd2 {[%emt 0:03:11]} Rc8 {[%emt 0:01:36]} 11. c4 {[%emt 0:07:04]} cxd4 {[%emt 0:08:58]} 12. Bxd4 {[%emt 0:03:25]} Bc5 {[%emt 0:00:56]} 13. Bb2 {[%emt 0:02:27]} Qb6 {[%emt 0:01:33]} 14. Qe2 {[%emt 0:03:35]} Bd4 {[%emt 0:01:54]} 15. Bxd4 {[%emt 0:02:24]} Qxd4 {[%emt 0:00:07]} 16. Qe3 {[%emt 0:01:54]} Qxe3 {[%emt 0:11:48]} 17. fxe3 {[%emt 0:03:55]} Rfd8 {[%emt 0:00:21]} 18. Red1 {[%emt 0:03:52]} Nc5 {[%emt 0:05:23]} 19. Be2 {[%emt 0:02:55]} Kf8 {[%emt 0:03:05]} 20. Kf2 {[%emt 0:01:06]} Ke7 {[%emt 0:01:42]} 21. Rac1 {[%emt 0:01:58]} b6 {[%emt 0:01:25]} 22. Nb1 {[%emt 0:06:00]} dxc4 {[%emt 0:03:35]} 23. Bxc4 {[%emt 0:02:23]} Nd5 {[%emt 0:01:49]} 24. Ke2 {[%emt 0:03:12]} Nf6 {[%emt 0:05:06]} 1/2-1/2

[Event "Fagernes GM-B 2019"]
[Site "Fagernes"]
[Date "2019.04.18"]
[Round "4"]
[White "Tryggestad, Andreas Garberg"]
[Black "Rozentalis, Eduardas"]
[Result "1-0"]
[ECO "C10"]
[WhiteElo "2305"]
[BlackElo "2568"]
[Annotator "ChessBase"]
[PlyCount "87"]
[EventDate "2019.04.14"]
[EventType "tourn"]
[EventCountry "NOR"]
[SourceTitle "playchess.com"]
[Source "ChessBase"]
[SourceQuality "1"]
[TimeControl "40/5400+30:1800+30"]

1. e4 {[%emt 0:03:30]} e6 {[%emt 0:00:44]} 2. d4 {[%emt 0:00:06]} d5 {[%emt 0:00:03]} 3. Nc3 {[%emt 0:00:04]} Nc6 {[%emt 0:00:33]} 4. Nf3 {[%emt 0:00:52]} Nf6 {[%emt 0:00:26]} 5. Bg5 {[%emt 0:02:18]} Be7 {[%emt 0:00:50]} 6. e5 {[%emt 0:05:09]} Ne4 {[%emt 0:00:52]} 7. Bxe7 {[%emt 0:00:35]} Qxe7 {[%emt 0:00:29]} 8. Bd3 {[%emt 0:00:18]} Nxc3 {[%emt 0:02:33]} 9. bxc3 {[%emt 0:00:02]} f6 {[%emt 0:00:13]} 10. Qe2 {[%emt 0:04:33]} O-O {[%emt 0:02:00]} 11. exf6 {[%emt 0:00:25]} Rxf6 {[%emt 0:02:47]} 12. O-O {[%emt 0:00:40]} Bd7 {[%emt 0:00:21]} 13. c4 {[%emt 0:07:15]} dxc4 {[%emt 0:09:48]} 14. Bxc4 {[%emt 0:00:32]} Raf8 {[%emt 0:02:10]} 15. c3 {[%emt 0:03:37]} Kh8 {[%emt 0:05:57]} 16. Bd3 {[%emt 0:01:35]} Rh6 {[%emt 0:15:03]} 17. Rae1 {[%emt 0:04:32]} Qa3 {[%emt 0:05:19]} 18. Qd2 {[%emt 0:06:03]} Rh5 {[%emt 0:05:21]} 19. Ng5 {[%emt 0:01:52]} Qa5 {[%emt 0:06:54]} 20. Ne4 {[%emt 0:00:35]} e5 {[%emt 0:03:32]} 21. Nc5 {[%emt 0:26:56]} Bc8 {[%emt 0:00:55]} 22. Nb3 {[%emt 0:00:27]} Qd5 {[%emt 0:03:23]} 23. c4 {[%emt 0:02:25]} Qd6 {[%emt 0:01:49]} 24. Be2 {[%emt 0:04:54]} Rh6 {[%emt 0:04:03]} 25. dxe5 {[%emt 0:06:51]} Qxd2 {[%emt 0:05:21]} 26. Nxd2 {[%emt 0:00:06]} Nxe5 {[%emt 0:00:05]} 27. Nf3 {[%emt 0:04:05]} Nc6 {[%emt 0:01:25]} 28. Bd3 {[%emt 0:00:33]} Rd6 {[%emt 0:04:34]} 29. Re3 {[%emt 0:00:26]} g6 {[%emt 0:02:19]} 30. h4 {[%emt 0:02:52]} Bg4 {[%emt 0:05:15]} 31. Ng5 {[%emt 0:00:31]} h6 {[%emt 0:02:26]} 32. Ne4 {[%emt 0:01:51]} Rd4 {[%emt 0:01:56]} 33. Nc5 {[%emt 0:02:50]} b6 {[%emt 0:01:12]} 34. Na6 {[%emt 0:00:01]} Na5 {[%emt 0:02:18]} 35. Bxg6 {[%emt 0:00:43]} Nxc4 {[%emt 0:01:40]} 36. Re7 {[%emt 0:00:01]} c5 {[%emt 0:00:35]} 37. Rfe1 {[%emt 0:00:30]} Rd7 {[%emt 0:00:44]} 38. f3 {[%emt 0:00:33]} Rxe7 {[%emt 0:00:44]} 39. Rxe7 {[%emt 0:00:00]} Bf5 {[%emt 0:00:07]} 40. Bxf5 {[%emt 0:01:00]} Rxf5 {[%emt 0:00:03]} 41. Rxa7 {[%emt 0:30:05]} Rf4 {[%emt 0:30:21]} 42. Nc7 {[%emt 0:00:36]} Rxh4 {[%emt 0:02:15]} 43. Nd5 {[%emt 0:00:45]} Kg8 {[%emt 0:00:00]} 44. Ne7+ {[%emt 0:00:00]} 1-0

[Event "Fagernes GM-B 2019"]
[Site "Fagernes"]
[Date "2019.04.18"]
[Round "6.22"]
[White "Tryggestad, Andreas Garberg"]
[Black "Levin, Felix"]
[Result "0-1"]
[ECO "C65"]
[WhiteElo "2305"]
[BlackElo "2476"]
[Annotator "ChessBase"]
[PlyCount "76"]
[EventDate "2019.04.14"]
[EventType "tourn"]
[EventCountry "NOR"]
[SourceTitle "playchess.com"]
[Source "ChessBase"]
[SourceQuality "1"]
[TimeControl "40/5400+30:1800+30"]

1. e4 {[%emt 0:02:36]} e5 {[%emt 0:00:19]} 2. Nf3 {[%emt 0:00:03]} Nc6 {[%emt 0:00:06]} 3. Bb5 {[%emt 0:00:03]} Nf6 {[%emt 0:00:10]} 4. d3 {[%emt 0:00:05]} Bc5 {[%emt 0:01:38]} 5. Bxc6 {[%emt 0:01:13]} dxc6 {[%emt 0:00:26]} 6. Nbd2 {[%emt 0:00:07]} Qe7 {[%emt 0:03:15]} 7. Nc4 {[%emt 0:02:11]} Nd7 {[%emt 0:02:42]} 8. O-O {[%emt 0:00:38]} f6 {[%emt 0:01:47]} 9. c3 {[%emt 0:01:00]} Nb6 {[%emt 0:03:55]} 10. Na5 {[%emt 0:02:34]} Bd6 {[%emt 0:02:26]} 11. d4 {[%emt 0:00:15]} O-O {[%emt 0:02:10]} 12. dxe5 {[%emt 0:02:59]} fxe5 {[%emt 0:02:21]} 13. Be3 {[%emt 0:00:08]} Rb8 {[%emt 0:08:52]} 14. Nd2 {[%emt 0:00:54]} Be6 {[%emt 0:02:47]} 15. Qe2 {[%emt 0:04:30]} Qe8 {[%emt 0:06:39]} 16. Nab3 {[%emt 0:06:48]} Nc8 {[%emt 0:09:39]} 17. Nc5 {[%emt 0:04:19]} Bxc5 {[%emt 0:03:47]} 18. Bxc5 {[%emt 0:01:41]} Rf6 {[%emt 0:46:01]} 19. Be3 {[%emt 0:05:30]} b6 {[%emt 0:00:00]} 20. Qa6 {[%emt 0:02:20]} c5 {[%emt 0:01:00]} 21. f4 {[%emt 0:07:18]} exf4 {[%emt 0:00:00]} 22. Rxf4 {[%emt 0:02:54]} Rxf4 {[%emt 0:00:00]} 23. Bxf4 {[%emt 0:00:07]} Qc6 {[%emt 0:00:00]} 24. Nf3 {[%emt 0:02:47]} h6 {[%emt 0:00:00]} 25. Rd1 {[%emt 0:02:17]} Nd6 {[%emt 0:00:00]} 26. Bxd6 {[%emt 0:00:24]} cxd6 {[%emt 0:00:00]} 27. Qxa7 {[%emt 0:00:03]} Re8 {[%emt 0:00:00]} 28. Qa6 {[%emt 0:02:11]} d5 {[%emt 0:00:00]} 29. Ne5 {[%emt 0:06:19]} Qc7 {[%emt 0:00:00]} 30. Qa4 {[%emt 0:07:24]} b5 {[%emt 0:01:28]} 31. Qxb5 {[%emt 0:02:35]} Rb8 {[%emt 0:00:02]} 32. Qc6 {[%emt 0:02:50]} Qxe5 {[%emt 0:00:05]} 33. exd5 {[%emt 0:00:01]} Qe3+ {[%emt 0:01:11]} 34. Kh1 {[%emt 0:00:01]} Bg4 {[%emt 0:00:12]} 35. Rf1 {[%emt 0:01:05]} Rxb2 {[%emt 0:00:14]} 36. d6 {[%emt 0:07:06]} Rd2 {[%emt 0:00:25]} 37. Rg1 {[%emt 0:11:30]} Qe5 {[%emt 0:00:55]} 38. h3 {[%emt 0:00:19]} Bxh3 {[%emt 0:01:00]} 0-1

[Event "Fagernes GM-B 2019"]
[Site "Fagernes"]
[Date "2019.04.18"]
[Round "6.23"]
[White "Von Bahr, Oskar"]
[Black "Rozentalis, Eduardas"]
[Result "0-1"]
[ECO "A13"]
[WhiteElo "2404"]
[BlackElo "2568"]
[Annotator "ChessBase"]
[PlyCount "84"]
[EventDate "2019.04.14"]
[EventType "tourn"]
[EventCountry "NOR"]
[SourceTitle "playchess.com"]
[Source "ChessBase"]
[SourceQuality "1"]
[TimeControl "40/5400+30:1800+30"]

1. c4 {[%emt 0:00:00]} e6 {[%emt 0:00:06]} 2. g3 {[%emt 0:00:00]} Nf6 {[%emt 0:00:10]} 3. Bg2 {[%emt 0:00:08]} d5 {[%emt 0:00:10]} 4. Nf3 {[%emt 0:00:19]} dxc4 {[%emt 0:00:31]} 5. Qa4+ {[%emt 0:02:02]} Bd7 {[%emt 0:01:08]} 6. Qxc4 {[%emt 0:00:24]} c5 {[%emt 0:00:29]} 7. Ne5 {[%emt 0:01:10]} Qc8 {[%emt 0:00:32]} 8. O-O {[%emt 0:01:03]} Nc6 {[%emt 0:00:45]} 9. Nxd7 {[%emt 0:00:14]} Qxd7 {[%emt 0:00:10]} 10. Qa4 {[%emt 0:04:47]} Nd5 {[%emt 0:07:27]} 11. Nc3 {[%emt 0:01:49]} Be7 {[%emt 0:00:37]} 12. d3 {[%emt 0:11:57]} O-O {[%emt 0:01:47]} 13. Bd2 {[%emt 0:01:20]} Rfd8 {[%emt 0:01:19]} 14. Rfc1 {[%emt 0:07:19]} Rac8 {[%emt 0:02:59]} 15. h4 {[%emt 0:06:57]} Nb6 {[%emt 0:07:52]} 16. Qg4 {[%emt 0:01:15]} f5 {[%emt 0:06:33]} 17. Qh3 {[%emt 0:02:13]} c4 {[%emt 0:00:18]} 18. Rd1 {[%emt 0:09:20]} cxd3 {[%emt 0:01:19]} 19. exd3 {[%emt 0:00:37]} Ne5 {[%emt 0:12:20]} 20. Be1 {[%emt 0:05:08]} Na4 {[%emt 0:14:53]} 21. Nxa4 {[%emt 0:13:25]} Qxa4 {[%emt 0:00:18]} 22. d4 {[%emt 0:02:13]} Rxd4 {[%emt 0:05:21]} 23. Rxd4 {[%emt 0:00:33]} Qxd4 {[%emt 0:00:07]} 24. Bc3 {[%emt 0:00:53]} Rxc3 {[%emt 0:01:40]} 25. bxc3 {[%emt 0:00:04]} Qxc3 {[%emt 0:00:17]} 26. Rf1 {[%emt 0:02:50]} b6 {[%emt 0:12:16]} 27. g4 {[%emt 0:10:13]} Qxh3 {[%emt 0:01:02]} 28. Bxh3 {[%emt 0:00:03]} fxg4 {[%emt 0:00:13]} 29. Bg2 {[%emt 0:00:11]} Bxh4 {[%emt 0:00:13]} 30. Re1 {[%emt 0:04:19]} Bxf2+ {[%emt 0:01:59]} 31. Kxf2 {[%emt 0:00:06]} Nd3+ {[%emt 0:00:02]} 32. Kf1 {[%emt 0:00:19]} Nxe1 {[%emt 0:00:03]} 33. Kxe1 {[%emt 0:00:05]} Kf7 {[%emt 0:00:26]} 34. Kf2 {[%emt 0:02:37]} Kf6 {[%emt 0:00:42]} 35. Bf1 {[%emt 0:01:33]} h5 {[%emt 0:00:58]} 36. Bc4 {[%emt 0:03:42]} h4 {[%emt 0:01:28]} 37. Ke3 {[%emt 0:00:25]} e5 {[%emt 0:04:42]} 38. Bb5 {[%emt 0:01:26]} Kg5 {[%emt 0:00:55]} 39. Ba4 {[%emt 0:02:36]} h3 {[%emt 0:01:27]} 40. Bd7 {[%emt 0:01:41]} Kh4 {[%emt 0:00:13]} 41. Bf5 {[%emt 0:07:47]} g3 {[%emt 0:00:12]} 42. Be4 {[%emt 0:04:26]} g5 {[%emt 0:00:28]} 0-1